fUSD/lending_fUSD_20250629
["ID","MTS","AMOUNT","RATE_DAILY","PERIOD"]
[368442967,1751181032945,-1000.0,0.00026334,2]
[368442969,1751181032954,-535.81,0.00026377,2]
[368442971,1751181032963,-200.0,0.00026381,2]
[368442974,1751181032973,-177.78,0.00026393,2]
[368442976,1751181032982,-151.94193683,0.000264,2]
[368442978,1751181032992,-300.0,0.000264,2]
[368442980,1751181033002,-207.4,0.000264,2]
[368442982,1751181033011,-300.0,0.000264,2]
[368442984,1751181033020,-300.0,0.000264,2]
[368442986,1751181033030,-300.0,0.000264,2]
[368442988,1751181033040,-178.42522448,0.000264,2]
[368442990,1751181033049,-300.0,0.000264,2]
[368442992,1751181033059,-300.0,0.000264,2]
[368442993,1751181033069,-300.0,0.000264,2]
[368442995,1751181033078,-668.65185757,0.000264,2]
[368442997,1751181033088,-500.0,0.000264,2]
[368442999,1751181033098,-151.0,0.000264,2]
[368443001,1751181033107,-500.0,0.000264,2]
[368443002,1751181033116,-151.0,0.000264,2]
[368443004,1751181033126,-500.0,0.000264,2]
[368443006,1751181033135,-301.50190115,0.000264,2]
[368443008,1751181033145,-1000.0,0.000264,2]
[368443010,1751181033154,-6912.642,0.000264,2]
[368443012,1751181033164,-500.0,0.000264,2]
[368443014,1751181033174,-500.0,0.000264,2]
[368443016,1751181033185,-500.0,0.000264,2]
[368443018,1751181033195,-300.0,0.000264,2]
[368443020,1751181033204,-500.0,0.000264,2]
[368443022,1751181033214,-300.0,0.000264,2]
[368443024,1751181033224,-500.0,0.000264,2]
[368443027,1751181033248,-300.0,0.000264,2]
[368443029,1751181033258,-300.0,0.000264,2]
[368443031,1751181033268,-300.0,0.000264,2]
[368443033,1751181033277,-300.0,0.000264,2]
[368443034,1751181033286,-409.6769918,0.000264,2]
[368443037,1751181033296,-3212.4878756,0.00026455,2]
[368443039,1751181033306,-202.22,0.00026459,2]
[368443040,1751181033316,-1405.0,0.00026462,7]
[368443042,1751181033325,-666.0,0.00026674,2]
[368443044,1751181033338,-246.39648245,0.00026735,2]
[368443047,1751181033428,-55.31351755,0.00026735,2]
[368443048,1751181033438,-150.0,0.00026735,2]
[368443049,1751181033448,-800.00800248,0.0002674,2]
[368443050,1751181033459,-530.0,0.0002674,2]
[368443051,1751181033519,-1126.51433059,0.0002674,2]
[368443052,1751181038231,-187.86894095,0.0002565,2]
[368443053,1751181038241,-153.40654693,0.0002674,2]
[368443054,1751181038250,-208.0,0.0002676,2]
[368443055,1751181038259,-1000.0,0.000268,2]
[368443056,1751181038268,-202.46825192,0.000269,16]
[368443057,1751181038278,-175.70283,0.00026939,8]
[368443058,1751181038287,-185.02695779,0.00026948,2]
[368443059,1751181038296,-1405.0,0.00027064,2]
[368443060,1751181038307,-150.0,0.00027074,2]
[368443061,1751181038316,-462.71,0.00027123,2]
[368443062,1751181038326,-799.39,0.00027123,2]
[368443063,1751181038338,-460.26,0.00027123,2]
[368443064,1751181038347,-462.71,0.00027151,2]
[368443065,1751181038356,-799.39,0.00027151,2]
[368443066,1751181038365,-462.71,0.00027151,2]
[368443067,1751181038374,-208.0,0.0002722,2]
[368443068,1751181038383,-799.39,0.0002726,2]
[368443069,1751181038392,-462.71,0.0002726,2]
[368443070,1751181038401,-799.39,0.0002726,2]
[368443071,1751181038410,-799.39,0.0002726,2]
[368443073,1751181038419,-395.69,0.0002726,2]
[368443075,1751181038428,-1000.0,0.00027396,2]
[368443077,1751181038438,-286.92,0.00027397,2]
[368443079,1751181038447,-676.38,0.000274,3]
[368443081,1751181038456,-676.38,0.000274,3]
[368443083,1751181038465,-676.38,0.000274,4]
[368443085,1751181038474,-676.38,0.000274,7]
[368443087,1751181038483,-676.38,0.000274,14]
[368443089,1751181038494,-19916.23741538,0.00027441,2]
[368443091,1751181038503,-202.22,0.00027451,2]
[368443093,1751181038512,-168.0,0.00027494,2]
[368443095,1751181038521,-191.87295522,0.00027496,2]
[368443097,1751181038530,-676.38,0.000275,4]
[368443099,1751181038539,-33400.22300311,0.00027509,4]
[368443100,1751181038550,-4823.83546228,0.00027509,2]
[368443102,1751181038559,-156.41229018,0.00027509,2]
[368443104,1751181038568,-180.80989765,0.00027509,2]
[368443106,1751181038577,-167.36016629,0.0002751,2]
[368443108,1751181038586,-3820.56583955,0.00027519,2]
[368443110,1751181038595,-3649.86551945,0.00027541,2]
[368443112,1751181038604,-200.0,0.00027551,2]
[368443114,1751181038613,-152.0,0.00027598,2]
[368443116,1751181038622,-397.84,0.00027598,2]
[368443118,1751181038631,-397.84,0.00027598,2]
[368443120,1751181038640,-397.84,0.00027598,2]
[368443122,1751181038648,-397.84,0.00027598,2]
[368443123,1751181038658,-397.84,0.00027598,2]
[368443124,1751181038667,-285.50169791,0.00027599,2]
[368443125,1751181038676,-152.0,0.00027599,2]
[368443126,1751181038685,-676.38,0.000276,4]
[368443128,1751181038694,-10116.5722596,0.000276,2]
[368443130,1751181038704,-4823.83546225,0.00027605,2]
[368443132,1751181038714,-314.25831276,0.00027607,10]
[368443134,1751181038723,-436.7408984,0.00027608,2]
[368443136,1751181038732,-500.0,0.00027608,2]
[368443138,1751181038742,-512.79365645,0.00027608,2]
[368443140,1751181038751,-500.0,0.00027608,2]
[368443142,1751181038760,-500.0,0.00027608,2]
[368443144,1751181038770,-489.10226562,0.00027608,2]
[368443146,1751181038779,-500.0,0.00027608,2]
[368443148,1751181038789,-500.0,0.00027608,2]
[368443150,1751181038799,-500.0,0.00027608,2]
[368443152,1751181038809,-500.0,0.00027608,2]
[368443154,1751181038818,-490.0,0.00027608,3]
[368443155,1751181038828,-490.0,0.00027608,3]
[368443157,1751181038838,-2063.22,0.00027608,3]
[368443159,1751181038848,-799.81,0.00027608,3]
[368443161,1751181038857,-766.49,0.00027608,3]
[368443163,1751181038867,-783.25,0.00027608,3]
[368443165,1751181038876,-490.0,0.00027608,2]
[368443167,1751181038885,-490.0,0.00027608,2]
[368443169,1751181038894,-2543.91,0.00027608,3]
[368443171,1751181038903,-2445.49,0.00027608,3]
[368443173,1751181038913,-775.07,0.00027608,3]
[368443175,1751181038922,-212330.301245,0.00027609,2]
[368443177,1751181038931,-163052.358281,0.00027609,2]
[368443179,1751181038940,-9591.315193,0.00027609,2]
[368443181,1751181038950,-490.0,0.00027618,3]
[368443183,1751181038959,-627.39,0.00027618,3]
[368443185,1751181038968,-490.0,0.00027618,3]
[368443186,1751181038977,-666.43,0.00027618,3]
[368443188,1751181038986,-490.0,0.00027618,3]
[368443190,1751181038996,-1179.71,0.00027618,3]
[368443192,1751181039005,-1127.86,0.00027618,3]
[368443194,1751181039015,-2384.25,0.00027618,3]
[368443196,1751181039024,-490.0,0.00027618,3]
[368443198,1751181039033,-2772.72,0.00027618,3]
[368443200,1751181039042,-1790.57,0.00027618,3]
[368443202,1751181039051,-2653.14,0.00027618,3]
[368443204,1751181039060,-617.2,0.00027618,3]
[368443206,1751181039069,-5689.33,0.00027618,3]
[368443208,1751181039078,-547.53,0.00027618,3]
[368443210,1751181039087,-2146.56,0.00027618,3]
[368443212,1751181039096,-2565.06,0.00027618,3]
[368443214,1751181039105,-490.0,0.00027618,3]
[368443216,1751181039114,-2324.81,0.00027618,3]
[368443217,1751181039123,-1800.06,0.00027618,3]
[368443219,1751181039132,-490.0,0.00027618,3]
[368443221,1751181039141,-3128.99,0.00027618,3]
[368443223,1751181039150,-490.0,0.00027618,3]
[368443225,1751181039158,-490.0,0.00027618,3]
[368443227,1751181039167,-919.72,0.00027618,3]
[368443229,1751181039177,-1021.02,0.00027618,3]
[368443231,1751181039186,-490.0,0.00027618,3]
[368443233,1751181039195,-939.09,0.00027618,3]
[368443235,1751181039204,-8220.45,0.00027618,3]
[368443237,1751181039213,-300.0,0.00027618,10]
[368443239,1751181039222,-666.0,0.00027618,10]
[368443241,1751181039231,-151.0,0.00027619,7]
[368443243,1751181039241,-151.0,0.00027619,7]
[368443245,1751181039250,-151.0,0.00027619,7]
[368443247,1751181039259,-151.0,0.00027619,7]
[368443249,1751181039268,-294.737535,0.00027619,7]
[368443251,1751181039278,-294.737535,0.00027619,7]
[368443252,1751181039287,-294.737535,0.00027619,7]
[368443254,1751181039296,-294.737535,0.00027619,7]
[368443256,1751181039305,-12427.79377892,0.00027619,2]
[368443258,1751181039314,-717.35879706,0.00027628,2]
[368443260,1751181039323,-9591.315193,0.00027629,2]
[368443262,1751181039334,-454.0,0.00027639,2]
[368443264,1751181039345,-3820.56583955,0.00027639,2]
[368443266,1751181039354,-208.0,0.0002767,30]
[368443268,1751181039363,-159.72974989,0.00027673,5]
[368443270,1751181039372,-500.0,0.00027673,5]
[368443272,1751181039381,-506.7882097,0.00027673,5]
[368443274,1751181039390,-212.84931276,0.00027673,5]
[368443276,1751181039399,-500.0,0.00027673,5]
[368443278,1751181039408,-1007.15,0.000277,2]
[368443280,1751181039417,-4823.83546225,0.00027702,2]
[368443282,1751181039427,-500.0,0.00027707,2]
[368443283,1751181039437,-150.0,0.00027707,2]
[368443285,1751181039446,-150.0,0.00027707,2]
[368443287,1751181039455,-500.0,0.00027707,2]
[368443289,1751181039464,-850.0,0.00027707,2]
[368443291,1751181039473,-203.00116388,0.00027707,2]
[368443293,1751181039482,-150.0,0.00027707,2]
[368443295,1751181039492,-200.0,0.00027707,2]
[368443297,1751181039501,-214.96537505,0.00027707,2]
[368443299,1751181039510,-150.0,0.00027707,2]
[368443301,1751181039519,-150.0,0.00027707,2]
[368443303,1751181039528,-150.0,0.00027707,2]
[368443305,1751181039538,-500.0,0.00027707,2]
[368443307,1751181039547,-150.0,0.00027707,2]
[368443309,1751181039557,-150.0,0.00027707,2]
[368443311,1751181039566,-500.0,0.00027707,2]
[368443313,1751181039575,-9591.315193,0.00027709,2]
[368443315,1751181039584,-152.0,0.00027709,2]
[368443317,1751181039593,-9591.315193,0.00027711,2]
[368443319,1751181039602,-47956.575965,0.00027718,2]
[368443321,1751181039611,-151.0,0.00027719,7]
[368443323,1751181039620,-151.0,0.00027719,7]
[368443325,1751181039630,-294.737535,0.00027719,7]
[368443327,1751181039643,-294.737535,0.00027719,7]
[368443329,1751181039653,-57547.891158,0.00027719,2]
[368443331,1751181039662,-151.0,0.00027721,7]
[368443333,1751181039672,-158.498918,0.00027721,7]
[368443335,1751181039681,-294.737535,0.00027721,7]
[368443337,1751181039690,-294.737535,0.00027721,7]
[368443339,1751181039699,-300.0,0.00027728,10]
[368443341,1751181039708,-666.0,0.00027728,10]
[368443343,1751181039717,-666.0,0.00027728,10]
[368443345,1751181039726,-1513.57,0.00027728,3]
[368443347,1751181039736,-490.0,0.00027728,3]
[368443349,1751181039746,-490.0,0.00027728,3]
[368443351,1751181039755,-490.0,0.00027728,3]
[368443353,1751181039765,-490.0,0.00027728,3]
[368443355,1751181039774,-490.0,0.00027728,3]
[368443357,1751181039784,-490.0,0.00027728,3]
[368443359,1751181039794,-490.0,0.00027728,3]
[368443361,1751181039804,-490.0,0.00027728,3]
[368443362,1751181039813,-490.0,0.00027728,3]
[368443364,1751181039822,-490.0,0.00027728,3]
[368443365,1751181039831,-492.3020794,0.00027728,3]
[368443367,1751181039840,-490.0,0.00027728,3]
[368443369,1751181039850,-724.95,0.00027728,3]
[368443371,1751181039859,-217.22237453,0.00027728,3]
[368443373,1751181039869,-710.94,0.00027728,3]
[368443375,1751181039878,-5336.78,0.00027728,3]
[368443377,1751181039888,-2154.93,0.00027728,3]
[368443379,1751181039898,-642.41,0.00027728,3]
[368443381,1751181039907,-6046.69,0.00027728,3]
[368443383,1751181039916,-490.0,0.00027728,3]
[368443385,1751181039926,-490.0,0.00027728,3]
[368443386,1751181039935,-490.0,0.00027728,3]
[368443388,1751181039945,-2760.67,0.00027728,3]
[368443390,1751181039955,-725.45,0.00027728,3]
[368443392,1751181039964,-2941.14,0.00027728,3]
[368443394,1751181039973,-11329.43,0.00027728,3]
[368443396,1751181039983,-560.26,0.00027728,3]
[368443398,1751181039992,-490.0,0.00027728,3]
[368443400,1751181040002,-490.0,0.00027728,3]
[368443402,1751181040011,-2672.06,0.00027728,3]
[368443404,1751181040020,-2094.49,0.00027728,3]
[368443406,1751181040030,-490.0,0.00027728,3]
[368443408,1751181040039,-1701.04,0.00027728,3]
[368443410,1751181040048,-511.03336575,0.00027728,3]
[368443411,1751181040058,-151.0,0.00027728,7]
[368443413,1751181040067,-1947.43,0.00027728,3]
[368443415,1751181040077,-2546.98,0.00027728,3]
[368443417,1751181040087,-490.0,0.00027728,3]
[368443419,1751181040097,-3358.89,0.00027728,3]
[368443421,1751181040106,-490.0,0.00027728,3]
[368443423,1751181040116,-12892.91,0.00027728,3]
[368443425,1751181040125,-490.0,0.00027728,3]
[368443427,1751181040134,-714.98,0.00027728,3]
[368443429,1751181040143,-2924.24,0.00027728,3]
[368443431,1751181040152,-2959.67,0.00027728,3]
[368443433,1751181040162,-1484.33,0.00027728,3]
[368443435,1751181040171,-3214.08,0.00027728,3]
[368443437,1751181040180,-294.737535,0.00027728,7]
[368443439,1751181040191,-294.737535,0.00027728,7]
[368443441,1751181040200,-2679.23,0.00027728,3]
[368443442,1751181040210,-5243.94,0.00027728,3]
[368443444,1751181040219,-294.737535,0.00027728,7]
[368443446,1751181040229,-294.737535,0.00027728,7]
[368443448,1751181040239,-490.0,0.00027728,3]
[368443450,1751181040248,-14928.02,0.00027728,3]
[368443452,1751181040258,-490.0,0.00027728,3]
[368443454,1751181040267,-1157.03,0.00027728,3]
[368443456,1751181040276,-1734.56,0.00027728,3]
[368443458,1751181040285,-5479.42,0.00027728,3]
[368443460,1751181040295,-3307.9,0.00027728,3]
[368443462,1751181040304,-490.0,0.00027729,3]
[368443464,1751181040313,-500.0,0.00027729,3]
[368443466,1751181040323,-500.0,0.00027729,3]
[368443468,1751181040332,-170.58697528,0.00027729,3]
[368443469,1751181040342,-490.0,0.00027729,3]
[368443471,1751181040352,-490.0,0.00027729,3]
[368443473,1751181040362,-490.0,0.00027729,3]
[368443475,1751181040374,-490.0,0.00027729,3]
[368443477,1751181040383,-750.37,0.00027729,3]
[368443479,1751181040392,-490.0,0.00027729,3]
[368443481,1751181040401,-490.0,0.00027729,3]
[368443483,1751181040411,-490.0,0.00027729,3]
[368443485,1751181040420,-490.0,0.00027729,3]
[368443487,1751181040429,-490.0,0.00027729,3]
[368443489,1751181040438,-490.0,0.00027729,3]
[368443491,1751181040446,-571.93,0.00027729,3]
[368443493,1751181040455,-490.0,0.00027729,3]
[368443495,1751181040465,-490.0,0.00027729,3]
[368443497,1751181040474,-490.0,0.00027729,3]
[368443498,1751181040483,-704.67,0.00027729,3]
[368443500,1751181040493,-490.0,0.00027729,3]
[368443502,1751181040502,-1253.64,0.00027729,3]
[368443504,1751181040512,-286.23368172,0.00027729,3]
[368443506,1751181040521,-490.0,0.00027729,3]
[368443508,1751181040531,-1153.24,0.00027729,3]
[368443510,1751181040540,-490.0,0.00027729,3]
[368443512,1751181040549,-896.43,0.00027729,3]
[368443514,1751181040558,-490.0,0.00027729,3]
[368443516,1751181040567,-490.0,0.00027729,3]
[368443518,1751181040577,-490.0,0.00027729,3]
[368443520,1751181040586,-490.0,0.00027729,3]
[368443522,1751181040595,-555.15,0.00027729,3]
[368443524,1751181040604,-490.0,0.00027729,3]
[368443525,1751181040613,-490.0,0.00027729,3]
[368443527,1751181040622,-490.0,0.00027729,3]
[368443529,1751181040631,-1094.33,0.00027729,3]
[368443531,1751181040640,-490.0,0.00027729,3]
[368443533,1751181040650,-2180.92,0.00027729,3]
[368443535,1751181040659,-490.0,0.00027729,3]
[368443537,1751181040668,-490.0,0.00027729,3]
[368443539,1751181040678,-490.0,0.00027729,3]
[368443541,1751181040687,-490.0,0.00027729,3]
[368443543,1751181040696,-653.56,0.00027729,3]
[368443545,1751181040706,-490.0,0.00027729,3]
[368443547,1751181040716,-490.0,0.00027729,3]
[368443549,1751181040725,-521.25,0.00027729,3]
[368443551,1751181040734,-631.87,0.00027729,3]
[368443553,1751181040743,-490.0,0.00027729,3]
[368443554,1751181040752,-758.2,0.00027729,3]
[368443556,1751181040761,-747.42,0.00027729,3]
[368443558,1751181040771,-490.0,0.00027729,3]
[368443560,1751181040780,-1528.85,0.00027729,3]
[368443562,1751181040789,-490.0,0.00027729,3]
[368443564,1751181040799,-490.0,0.00027729,3]
[368443566,1751181040809,-490.0,0.00027729,3]
[368443568,1751181040818,-2020.13,0.00027729,3]
[368443570,1751181040827,-490.0,0.00027729,3]
[368443572,1751181040837,-490.0,0.00027729,3]
[368443574,1751181040846,-490.0,0.00027729,3]
[368443575,1751181040856,-937.87,0.00027729,3]
[368443577,1751181040865,-490.0,0.00027729,3]
[368443579,1751181040874,-2521.9,0.00027729,3]
[368443580,1751181040883,-490.0,0.00027729,3]
[368443582,1751181040893,-490.0,0.00027729,3]
[368443584,1751181040902,-659.51,0.00027729,3]
[368443586,1751181040912,-462.35051923,0.00027729,3]
[368443588,1751181040921,-1494.88,0.00027729,3]
[368443590,1751181040930,-490.0,0.00027729,3]
[368443592,1751181040940,-490.0,0.00027729,3]
[368443594,1751181040949,-197.59148099,0.00027729,3]
[368443595,1751181040958,-918.44,0.00027729,3]
[368443597,1751181040968,-490.0,0.00027729,3]
[368443599,1751181040977,-1245.98,0.00027729,3]
[368443601,1751181040987,-495.1301241,0.00027729,3]
[368443603,1751181040997,-490.0,0.00027729,3]
[368443605,1751181041005,-490.0,0.00027729,3]
[368443607,1751181041015,-2130.24,0.00027729,3]
[368443609,1751181041025,-490.0,0.00027729,3]
[368443611,1751181041034,-490.0,0.00027729,3]
[368443612,1751181041043,-490.0,0.00027729,3]
[368443614,1751181041053,-490.0,0.00027729,3]
[368443616,1751181041062,-1824.71,0.00027729,3]
[368443618,1751181041072,-490.0,0.00027729,3]
[368443620,1751181041081,-490.0,0.00027729,3]
[368443622,1751181041091,-490.0,0.00027729,3]
[368443624,1751181041100,-490.0,0.00027729,3]
[368443626,1751181041109,-819.07,0.00027729,3]
[368443628,1751181041119,-490.0,0.00027729,3]
[368443630,1751181041129,-490.0,0.00027729,3]
[368443632,1751181041138,-539.39,0.00027729,3]
[368443634,1751181041147,-548.39,0.00027729,3]
[368443635,1751181041156,-478.90588852,0.00027729,3]
[368443637,1751181041166,-2061.87,0.00027729,3]
[368443639,1751181041174,-490.0,0.00027729,3]
[368443641,1751181041184,-490.0,0.00027729,3]
[368443643,1751181041193,-490.0,0.00027729,3]
[368443645,1751181041202,-2634.572186,0.00027729,3]
[368443646,1751181041211,-490.0,0.00027729,3]
[368443647,1751181041220,-158.454063,0.00027729,3]
[368443648,1751181041230,-490.0,0.00027729,3]
[368443649,1751181041239,-490.0,0.00027729,3]
[368443650,1751181041249,-490.0,0.00027729,3]
[368443651,1751181041258,-490.0,0.00027729,3]
[368443652,1751181041267,-151.887036,0.00027729,3]
[368443653,1751181041277,-490.0,0.00027729,3]
[368443654,1751181041287,-441.285948,0.00027729,3]
[368443655,1751181041296,-490.0,0.00027729,3]
[368443656,1751181041305,-1220.64,0.00027729,3]
[368443657,1751181041314,-490.0,0.00027729,3]
[368443658,1751181041323,-490.0,0.00027729,3]
[368443659,1751181041332,-1533.93,0.00027729,3]
[368443660,1751181041343,-816.39,0.00027729,3]
[368443661,1751181041352,-727.54,0.00027729,3]
[368443662,1751181041361,-490.0,0.00027729,3]
[368443663,1751181041370,-3529.094479,0.00027729,3]
[368443664,1751181041380,-725.22,0.00027729,3]
[368443665,1751181041389,-490.0,0.00027729,3]
[368443666,1751181041398,-490.0,0.00027729,3]
[368443667,1751181041408,-490.0,0.00027729,3]
[368443668,1751181041417,-490.0,0.00027729,3]
[368443669,1751181041427,-537.42,0.00027729,3]
[368443671,1751181041437,-490.0,0.00027729,3]
[368443673,1751181041446,-490.0,0.00027729,3]
[368443675,1751181041455,-1640.41,0.00027729,3]
[368443677,1751181041465,-490.0,0.00027729,3]
[368443679,1751181041474,-3851.84049,0.00027729,3]
[368443680,1751181041484,-490.0,0.00027729,3]
[368443683,1751181041493,-542.82463537,0.00027729,3]
[368443684,1751181041503,-490.0,0.00027729,3]
[368443687,1751181041512,-490.0,0.00027729,3]
[368443689,1751181041522,-490.0,0.00027729,3]
[368443690,1751181041531,-542.76086041,0.00027729,3]
[368443692,1751181041542,-936.2,0.00027729,3]
[368443695,1751181041551,-490.0,0.00027729,3]
[368443697,1751181041560,-490.0,0.00027729,3]
[368443698,1751181041570,-1388.66,0.00027729,3]
[368443700,1751181041579,-578.37,0.00027729,3]
[368443702,1751181041588,-490.0,0.00027729,3]
[368443704,1751181041597,-490.0,0.00027729,3]
[368443706,1751181041607,-490.0,0.00027729,3]
[368443708,1751181041615,-490.0,0.00027729,3]
[368443711,1751181041625,-1588.38,0.00027729,3]
[368443713,1751181041635,-490.0,0.00027729,3]
[368443715,1751181041644,-490.0,0.00027729,3]
[368443717,1751181041653,-490.0,0.00027729,3]
[368443719,1751181041663,-490.0,0.00027729,3]
[368443720,1751181041672,-490.0,0.00027729,3]
[368443722,1751181041681,-1544.75,0.00027729,3]
[368443724,1751181041691,-490.0,0.00027729,3]
[368443726,1751181041700,-490.0,0.00027729,3]
[368443729,1751181041709,-490.0,0.00027729,3]
[368443730,1751181041719,-1423.04,0.00027729,3]
[368443733,1751181041728,-490.0,0.00027729,3]
[368443735,1751181041738,-490.0,0.00027729,3]
[368443737,1751181041747,-490.0,0.00027729,3]
[368443739,1751181041757,-490.0,0.00027729,3]
[368443767,1751181042023,-490.0,0.00027729,3]
[368443769,1751181042036,-521.7134462,0.00027729,3]
[368443771,1751181042046,-490.0,0.00027729,3]
[368443773,1751181042055,-490.0,0.00027729,3]
[368443775,1751181042065,-490.0,0.00027729,3]
[368443777,1751181042074,-490.0,0.00027729,3]
[368443779,1751181042085,-619.04,0.00027729,3]
[368443781,1751181042094,-490.0,0.00027729,3]
[368443783,1751181042103,-490.0,0.00027729,3]
[368443785,1751181042113,-490.0,0.00027729,3]
[368443787,1751181042122,-490.0,0.00027729,3]
[368443789,1751181042131,-490.0,0.00027729,3]
[368443791,1751181042140,-490.0,0.00027729,3]
[368443793,1751181042150,-654.86,0.00027729,3]
[368443795,1751181042159,-490.0,0.00027729,3]
[368443797,1751181042168,-490.0,0.00027729,3]
[368443799,1751181042177,-490.0,0.00027729,3]
[368443800,1751181042186,-490.0,0.00027729,3]
[368443802,1751181042195,-664.59,0.00027729,3]
[368443804,1751181042205,-490.0,0.00027729,3]
[368443806,1751181042214,-490.0,0.00027729,3]
[368443808,1751181042223,-490.0,0.00027729,3]
[368443810,1751181042233,-490.0,0.00027729,3]
[368443812,1751181042242,-490.0,0.00027729,3]
[368443814,1751181042252,-490.0,0.00027729,3]
[368443816,1751181042261,-490.0,0.00027729,3]
[368443819,1751181042271,-839.16,0.00027729,3]
[368443820,1751181042280,-490.0,0.00027729,3]
[368443823,1751181042290,-490.0,0.00027729,3]
[368443825,1751181042299,-490.0,0.00027729,3]
[368443827,1751181042309,-490.0,0.00027729,3]
[368443829,1751181042319,-490.0,0.00027729,3]
[368443831,1751181042329,-490.0,0.00027729,3]
[368443832,1751181042342,-490.0,0.00027729,3]
[368443834,1751181042351,-490.0,0.00027729,3]
[368443837,1751181042362,-490.0,0.00027729,3]
[368443839,1751181042372,-490.0,0.00027729,3]
[368443841,1751181042381,-724.74,0.00027729,3]
[368443843,1751181042391,-1070.97,0.00027729,3]
[368443845,1751181042400,-490.0,0.00027729,3]
[368443846,1751181042409,-490.0,0.00027729,3]
[368443848,1751181042418,-490.0,0.00027729,3]
[368443850,1751181042428,-490.0,0.00027729,3]
[368443852,1751181042437,-700.11,0.00027729,3]
[368443854,1751181042447,-3031.19,0.00027729,3]
[368443857,1751181042456,-490.0,0.00027729,3]
[368443858,1751181042465,-509.30613562,0.00027729,3]
[368443860,1751181042475,-490.0,0.00027729,3]
[368443862,1751181042484,-3018.42,0.00027729,3]
[368443864,1751181042494,-490.0,0.00027729,3]
[368443867,1751181042503,-1887.96,0.00027729,3]
[368443869,1751181042513,-335.01374924,0.00027729,3]
[368443871,1751181042523,-490.0,0.00027729,3]
[368443872,1751181042532,-490.0,0.00027729,3]
[368443875,1751181042542,-490.0,0.00027729,3]
[368443877,1751181042552,-490.0,0.00027729,3]
[368443878,1751181042561,-521.61,0.00027729,3]
[368443880,1751181042570,-2164.49,0.00027729,3]
[368443882,1751181042580,-490.0,0.00027729,3]
[368443884,1751181042589,-490.0,0.00027729,3]
[368443886,1751181042598,-490.0,0.00027729,3]
[368443888,1751181042607,-490.0,0.00027729,3]
[368443890,1751181042617,-2793.81,0.00027729,3]
[368443892,1751181042626,-490.0,0.00027729,3]
[368443894,1751181042635,-490.0,0.00027729,3]
[368443896,1751181042644,-490.0,0.00027729,3]
[368443898,1751181042653,-490.0,0.00027729,3]
[368443900,1751181042663,-490.0,0.00027729,3]
[368443902,1751181042672,-1102.9,0.00027729,3]
[368443904,1751181042681,-490.0,0.00027729,3]
[368443906,1751181042691,-490.0,0.00027729,3]
[368443908,1751181042700,-1020.61,0.00027729,3]
[368443910,1751181042710,-490.0,0.00027729,3]
[368443912,1751181042719,-490.0,0.00027729,3]
[368443914,1751181042728,-547.03,0.00027729,3]
[368443916,1751181042737,-151.0,0.00027729,7]
[368443918,1751181042747,-490.0,0.00027729,3]